Cogmind - Beta 17 @@@ ROGUE MODE // 2026.07.03 @ 23:41:02 Player: DizzyWaters Result: Destroyed by T5-GPL(R) with Subdweller Machine Gun Performance ------------- Evolutions (0) 0 Regions Visited (2) 400 Robots Destroyed (20) 100 Value Destroyed (395) 395 Prototype IDs (0) 0 Alien Tech Used (0) 0 Bonus (0) 0 TOTAL SCORE: 895 Bonus ------- None Cogmind --------- Core Integrity 0/250 Matter 261/300 Energy 197/200 System Corruption 0% Temperature Cool (0) Movement Rolling (110) Location -10/Subcaves Parts ------- > --- POWER (1) -------- Subdweller Power Source > --- PROPULSION (2) --- Subdweller Monowheel Subdweller Monowheel > --- UTILITY (2) ------ Small Storage Unit Weapon Shielding > --- WEAPON (2) ------- Subdweller Laser > --- INVENTORY (8) ---- Light Ion Engine Aluminum Leg Disposable Heat Sink Power Shielding Scrap Shield Scrap Shield Fragment (46) Peak State ------------ > --- POWER ------------ Subdweller Power Source > --- PROPULSION ------- Aluminum Leg Subdweller Monowheel > --- UTILITY ---------- Small Storage Unit Subdweller Optics > --- WEAPON ----------- Battle Rifle Flamer > --- INVENTORY -------- Light Ion Engine Disposable Heat Sink Power Shielding Weapon Shielding Scrap Shield Subdweller Laser [Rating: 13] Favorites ----------- Power Light Ion Engine Engine Light Ion Engine Propulsion Aluminum Leg Leg Aluminum Leg Wheel Compact Wheel Utility Small Storage Unit Device Subdweller Optics Storage Small Storage Unit Processor Targeting Computer Protection Power Shielding Weapon Assault Rifle Energy Gun Small Laser Ballistic Gun Assault Rifle Ballistic Cannon Battle Cannon Special Weapon Flamer Build | -11 -10 -10 ------- Run | Yrd Mat Sub Slots Evolved . | . . . Power . | . . . Propulsion . | . . . Utility . | . . . Weapon . | . . . Parts Attached 25 | 6 9 10 Power 4 | 1 2 1 Engine 4 | 1 2 1 Core . | . . . Reactor . | . . . Propulsion 7 | 2 2 3 Treads . | . . . Leg 3 | . 2 1 Wheel 4 | 2 . 2 Hover . | . . . Flight . | . . . Utility 5 | 1 2 2 Device 1 | . . 1 Storage 1 | 1 . . Processor 1 | . 1 . Hackware . | . . . Protection 2 | . 1 1 Artifact . | . . . Weapon 9 | 2 3 4 Energy Gun 4 | 2 1 1 Energy Cannon . | . . . Ballistic Gun 3 | . 2 1 Ballistic Cannon 1 | . . 1 Launcher . | . . . Special Weapon 1 | . . 1 Impact Weapon . | . . . Slashing Weapon . | . . . Piercing Weapon . | . . . Special Melee Weapon . | . . . Unidentified Prototypes . | . . . Parts Lost 11 | . 5 6 Power 2 | . 2 . Propulsion 3 | . 1 2 Utility . | . . . Weapon 6 | . 2 4 Highest Loss Streak 3 | . 3 3 To Critical Strikes . | . . . Average Backups 4 | 1 3 6 Power . | . . . Propulsion 1 | 1 2 1 Utility 2 | . 1 3 Weapon . | . . 1 Tool/Special . | . . . Unused Backups 6 | . 4 2 Power 1 | . 1 . Propulsion 2 | . 1 1 Utility 3 | . 2 1 Weapon . | . . . Tool/Special . | . . . Average Slot Usage (%) 91 | . 87 96 Engine 13 | . 13 14 Leg 16 | . 12 21 Wheel 11 | . 15 6 Device 4 | . . 9 Storage 14 | . 14 14 Processor 2 | . 3 1 Protection 3 | . 3 3 Energy Gun 7 | . 6 9 Ballistic Gun 14 | . 17 10 Ballistic Cannon 1 | . . 3 Peak Build Rating 13 | 6 8 13 Average Rating 7 | 3 6 10 On Entrance 4 | . 6 8 Avg Prop Armor Cover (%) 3 | . 3 15 Naked Turns . | . . . Heaviest Build 18 | 14 14 18 Greatest Support 40 | 26 26 40 Greatest Overweight (x) 1 | . 1 . Average Overweight (x) . | . . . Largest Inventory Capacity 8 | 8 8 8 Average Capacity 7 | 6 8 8 Most Carried 8 | 5 8 8 Average Carried 5 | 2 4 7 Final Capacity 8 | 8 8 8 Final Carried 8 | 2 8 7 Class Distribution -------------------- 89% | Mutant 10% | Scavenger-Mutant Dominant Class ---------------- Mutant | -10/Materials Mutant | -10/Subcaves Resources | -11 -10 -10 ----------- Run | Yrd Mat Sub Matter Collected 635 | 229 273 133 Remotely . | . . . Salvage Created 513 | . 322 191 Parts 38 | . 28 10 Haulers Intercepted . | . . . Recyclers Shooed . | . . . Parts Field Recycled . | . . . Retrieved Matter . | . . . Parts Self-Destructed 2 | . . 2 Prevented . | . . . Parts Restored . | . . . Kills | -11 -10 -10 ------- Run | Yrd Mat Sub Combat Hostiles Destroyed 17 | . 12 5 Guns 15 | . 12 3 Cannons 1 | . . 1 Classes Destroyed 4 | . 3 1 Worker 3 | . 3 . Swarmer 9 | . 9 . Grunt 3 | . 3 . Subdweller 5 | . . 5 Best Kill Streak 10 | . 10 2 Combat Bots Only 8 | . 8 2 Max Kills in Single Turn 1 | . 1 1 Gunslinging . | . . . Exploded . | . . . Melee . | . . . Uniques/NPCs Destroyed . | . . . Combat | -11 -10 -10 -------- Run | Yrd Mat Sub Hostile Shots Fired 131 | . 83 48 Missed 41 | . 25 16 Hits 90 | . 58 32 Projectile 90 | . 58 32 AOE 3 | . 2 1 Critical Strikes 1 | . . 1 Damage Taken 1431 | . 653 778 Core 266 | . 112 154 Absorbed by Shields . | . . . Redirected to Shielding 39 | . 6 33 Core Remaining (%) 100 | 100 . . Volleys Fired 72 | . 42 30 Largest 2 | . 2 2 Hottest 125 | . 80 125 Shots Fired 116 | . 68 48 Gun 103 | . 68 35 Cannon 5 | . . 5 Launcher . | . . . Special 8 | . . 8 Kinetic 76 | . 52 24 Thermal 24 | . . 24 Explosive . | . . . Electromagnetic 16 | . 16 . Robot Hit Streak 13 | . 4 13 Robot Miss Streak 3 | . 3 3 Penetration Max . | . . . Secondary Targets 1 | . 1 . Max Gunslinging Chain 1 | . 1 . Shots Hit Robots 75 | . 38 37 Core Hits 26 | . 18 8 Critical Kills . | . . . Critical Parts Destroyed . | . . . Critical Strikes 1 | . . 1 Burn 1 | . . 1 Melee Attacks . | . . . Impact . | . . . Slashing . | . . . Piercing . | . . . Sneak Attacks . | . . . Combat Hostiles . | . . . Follow-up Attacks . | . . . Damage Inflicted 1050 | . 512 538 Guns 919 | . 500 419 Cannons 43 | . . 43 Explosions . | . . . Melee . | . . . Ramming 12 | . 12 . Kinetic 669 | . 424 245 Thermal 293 | . . 293 Explosive . | . . . Electromagnetic 76 | . 76 . Impact . | . . . Slashing . | . . . Piercing . | . . . Highest Corruption . | . . . Average Corruption . | . . . Corruption Purged . | . . . Corruption Blocked . | . . . Overload Shots . | . . . Overflow Damage . | . . . Projectiles . | . . . Explosions . | . . . Melee . | . . . Knockbacks 1 | . . 1 Impact . | . . . Kinetic 1 | . . 1 Secondary . | . . . Self-Inflicted Damage 5 | . 5 . Shots . | . . . Rammed 2 | . 2 . Targets Rammed 2 | . 2 . Kicked . | . . . Crushed . | . . . Highest Temperature 249 | . 70 249 Average Temperature 55 | . 41 64 Received Heat Transfer 422 | . 72 350 Effects 3 | . . 3 Interference 3 | . . 3 Siege Activations . | . . . Martial Activations . | . . . Shielding Activations . | . . . Robots Disrupted . | . . . Combat Hostiles . | . . . Robots Corrupted . | . . . Combat Hostiles . | . . . Parts Fried . | . . . Impact Corruptions . | . . . Robots Melted 1 | . . 1 Combat Hostiles 1 | . . 1 Parts Melted 1 | . . 1 Heat Transferred 1020 | . . 1020 Parts Sabotaged . | . . . Parts Stolen . | . . . Parts Stripped . | . . . Power Chain Reactions . | . . . Alert | -11 -10 -10 ------- Run | Yrd Mat Sub Maximum Alert Level . | . . . Low Security (%) 100 | 100 100 . Level 1 . | . . . Level 2 . | . . . Level 3 . | . . . Level 4 . | . . . Level 5 . | . . . High Security . | . . . Max Security . | . . . Peak Influence 130 | . 130 . Initial . | . . . Average 49 | . 54 . Influence Increases 299 | . 299 . Destroy 0b10 Robot/C 240 | . 240 . Destroy 0b10 Robot/NC 15 | . 15 . Destroy Leader 40 | . 40 . Successful Hack 4 | . 4 . Influence Decreases 299 | . 276 23 Entered New Map 12 | . . 12 Time Decay 237 | . 226 11 Lost Part 50 | . 50 . Squads Dispatched 1 | . 1 . Investigation 1 | . 1 . Extermination . | . . . Reinforcement . | . . . Assault . | . . . Garrison . | . . . Intercept . | . . . Searches Triggered . | . . . Construction Impeded . | . . . Haulers Reinforced . | . . . Active Scanning Responses . | . . . Cargo Convoy Interrupts . | . . . Stealth | -11 -10 -10 --------- Run | Yrd Mat Sub Distress Signals 3 | . 3 . Communications Jammed . | . . . Distress Signals . | . . . Times Spotted 27 | . 20 7 Peak Tracking Total 6 | . 6 2 Tactical Retreats . | . . . Traps | -11 -10 -10 ------- Run | Yrd Mat Sub Traps Triggered 1 | . 1 . Indirectly . | . . . Trap Hack Attempts . | . . . Triggered . | . . . Disarmed . | . . . Reprogrammed . | . . . Reused . | . . . Traps Extracted . | . . . Installed . | . . . Triggered . | . . . Machines | -11 -10 -10 ---------- Run | Yrd Mat Sub Machines Disabled . | . . . Max in Single Turn . | . . . Machines Repaired . | . . . Machines Dismantled . | . . . Machines Sabotaged . | . . . Overloaded Fab Kills . | . . . Hacking | -11 -10 -10 --------- Run | Yrd Mat Sub Machines Accessed 3 | . 3 . Terminals 2 | . 2 . Fabricators . | . . . Repair Stations . | . . . Recycling Units 1 | . 1 . Scanalyzers . | . . . Garrison Access . | . . . Total Hacks 4 | . 4 . Successful 3 | . 3 . Failed 1 | . 1 . Catastrophic . | . . . Database Lockouts . | . . . Manual 7 | . 7 . Terminals 3 | . 3 . Fabricators . | . . . Repair Stations . | . . . Recycling Units 1 | . 1 . Scanalyzers . | . . . Garrison Access . | . . . Terminal Hacks 2 | . 2 . Dispatch Records 1 | . 1 . Zone Layout 1 | . 1 . Fabricator Hacks . | . . . Repair Station Hacks . | . . . Recycling Unit Hacks 1 | . 1 . Report Inventory 1 | . 1 . Scanalyzer . | . . . Garrison Access Hacks . | . . . Unauthorized Hacks . | . . . Terminals . | . . . Fabricators . | . . . Repair Stations . | . . . Recycling Units . | . . . Scanalyzers . | . . . Garrison Access . | . . . Data Cores Recovered . | . . . Used . | . . . Hacking Detections 1 | . 1 . Full Trace Events . | . . . Feedback Events . | . . . Feedback Blocked . | . . . Robot Schematics Acquired . | . . . Robots Built . | . . . Authchips . | . . . Time . | . . . Total Robot Build Rating . | . . . Part Schematics Acquired . | . . . Parts Built . | . . . Authchips . | . . . Time . | . . . Total Part Build Rating . | . . . Part Studies Acquired . | . . . Parts Repaired . | . . . Time . | . . . Parts Recycled . | . . . Recycled Matter . | . . . Retrieved Matter . | . . . Retrieved Components . | . . . Parts Scanalyzed . | . . . Part Schematics Acquired . | . . . Parts Damaged . | . . . Bothacking | -11 -10 -10 ------------ Run | Yrd Mat Sub Used RIF Installer . | . . . Robots Hacked . | . . . Non-combat . | . . . Combat . | . . . Robot Hacks Applied . | . . . Relay Couplers Released . | . . . Fabnet Peak Effective % . | . . . Robots Rewired . | . . . Allies Hacked . | . . . Hacks Repelled . | . . . Allies | -11 -10 -10 -------- Run | Yrd Mat Sub Total Allies . | . . . Largest Group . | . . . Highest-Rated Group . | . . . Highest-Rated Ally . | . . . Total Orders . | . . . Ally Attacks . | . . . Total Damage . | . . . Kills . | . . . Allies Corrupted . | . . . Allies Melted . | . . . Intel | -11 -10 -10 ------- Run | Yrd Mat Sub Active Infowar (turns) 279 | . . 279 Optics 279 | . . 279 Robot Analysis Total . | . . . Derelict Logs Recovered 1 | . . 1 Drone Launches . | . . . Drone Recoveries . | . . . Exploration | -11 -10 -10 ------------- Run | Yrd Mat Sub Turns Passed 991 | 55 532 404 Spaces Moved 655 | 55 363 237 Core 21 | 21 . . Treads . | . . . Legs 344 | . 173 171 Wheels 290 | 34 190 66 Hover . | . . . Flight . | . . . Fastest Speed 50 | 50 90 110 Average Speed 107 | 74 105 117 Slowest Speed 120 | 90 120 120 Overloaded Moves . | . . . Propulsion Burnouts . | . . . Robots Hopped . | . . . Potential Cave-ins . | . . . Cave-ins Triggered . | . . . Exploration Rate (%) 24 | 3 55 16 Regions Visited 2 Branch Regions 1 Pre-discovered Areas . | . . . Known Exits Taken . | . . . Unknown Exits Taken 2 | 1 1 . Scrap Searched 1 | . . 1 Spaces Dug . | . . . Terrain Destroyed . | . . . Melee . | . . . Projectile . | . . . AOE . | . . . Terrain Rammed . | . . . Walls Destroyed . | . . . Machines Disabled . | . . . Actions | -11 -10 -10 --------- Run | Yrd Mat Sub Total 819 | 68 444 307 Wait 23 | . 6 17 Move 653 | 54 362 237 Hop . | . . . Pick Up 33 | 8 17 8 Fast Attach . | . . . Attach 18 | 6 6 6 Detach . | . . . Swap 9 | . 3 6 Drop 9 | . 6 3 Fire 72 | . 42 30 Melee . | . . . Ram 2 | . 2 . Kick . | . . . Crush . | . . . Escape Stasis . | . . . Rewire . | . . . Trap . | . . . Miscellaneous . | . . . Route ------- -11/Scrapyard -10/Materials (discovered 4 exits: [*Mat] / [*Min x2] / [*Sub]) -10/Subcaves History --------- Turn | Location | Event 7 | -11/Scrapyard | Discovered new exit (range 15) 56 | -11/Scrapyard | Entered Materials 193 | -10/Materials | Discovered new exit (range 15) 261 | -10/Materials | Discovered new exit (range 16) 324 | -10/Materials | Build established: Mutant 364 | -10/Materials | Lost 3 parts (1p1n1w) 365 | -10/Materials | Destroyed 8 combat bots 526 | -10/Materials | Discovered new exit (range 10) 529 | -10/Materials | Discovered new exit (range 7) 556 | -10/Materials | Derelicts attacked the area 588 | -10/Materials | Entered Subcaves 593 | -10/Subcaves | Learned Materials emergency access door positions 785 | -10/Subcaves | Lost 3 parts (1n2w) 846 | -10/Subcaves | Core integrity fell below 50% 896 | -10/Subcaves | Core integrity fell below 20% 934 | -10/Subcaves | Lost 3 parts (1n2w) 992 | -10/Subcaves | Destroyed by T5-GPL(R) with Subdweller Machine Gun Last Messages --------------- 00793_ Acquired Sub. Power Source. 00865_ U7-OJ4(R) suffers critical hit (Burn). 00865_ U7-OJ4(R) overheating. 00866_ U7-OJ4(R) heat spikes uncontrollably. 00866_ U7-OJ4(R) critical meltdown. 00866_ Sub. Monowheel melted. 00889_ Aluminum Leg destroyed. 00891_ HW-R1Y(R) heat short circuits Sub. Optics. 00893_ Critical hit (Meltdown: +260). 00894_ Overheating: System interference. 00894_ Battle Rifle temporarily disabled. 00894_ Sub. Optics temporarily disabled. 00897_ Dropped Sub. Optics. 00899_ Flamer destroyed. 00903_ Battle Rifle destroyed. 00907_ HW-R1Y(R) destroyed. 00910_ Acquired Scrap Shield Fragment. 00911_ Acquired 19 matter. 00912_ Acquired 33 matter. 00915_ Acquired Sub. Monowheel. Map ----- +----------------------------------------------------+ | # ### #????????????????????????????????? | | & #????????????????????????????????? | | #"! #????????????????????????????????? | | #### ## #????????????????????????????????? | | # # ## #????????????????????????????????? | | ## #????????????????????????????????? | | #?###????????????????????????????????? | | # ###????????????????????????????????????? | | ### #??????????######??#######?#???????????? | | ##?## ####?####### ### # ???????????? | | ???## ### # # "??????????? | | #????# "## " "" ??????????? | | #????## " """""""" #?????????????? | | " ???# " ### " """"" ##???????????? | | " #?## #?#### """" #???????????? | | ##" "## # #????# """ ?????????????? | | ??# """ #????# " " ### ??????????????? | | ??##""""" ##????#"" "#???????????????????? | | ???# "#### ###?????## "#???????????????????? | | ???##????##### #???????## "#???????????????????? | | ?????????????###??????## "#???????????????????? | | ?????????????????????## ""## ##???????????????? | | ?????????????????????# "" #???????????????? | | ?????????????????????# ""## #??????????????? | | ?????????????????????# RR"##?# #??????????????? | | ?????????????????????# @"#???# ##??????????????? | | ?????????????????????#### #????##???????????????? | | ????????????????????????##""#????????????????????? | | ?????????????????????????#"" #???????????????????? | | ?????????????????????????#####???????????????????? | | ?????????????????????????????????????????????????? | | ?????????????????????????????????????????????????? | | ?????????????????????????????????????????????????? | | ?????????????????????????????????????????????????? | | ?????????????????????????????????????????????????? | | ?????????????????????????????????????????????????? | | ?????????????????????????????????????????????????? | | ?????????????????????????????????????????????????? | | ?????????????????????????????????????????????????? | | ?????????????????????????????????????????????????? | | ?????????????????????????????????????????????????? | | ?????????????????????????????????????????????????? | | ?????????????????????????????????????????????????? | | ?????????????????????????????????????????????????? | | ?????????????????????????????????????????????????? | | ?????????????????????????????????????????????????? | | ?????????????????????????????????????????????????? | | ?????????????????????????????????????????????????? | | ?????????????????????????????????????????????????? | | ?????????????????????????????????????????????????? | +----------------------------------------------------+ Best States ------------- Heat Dissipation 25 Energy Generation 15 Energy Capacity 250 Matter Stores 300 Matter Capacity 300 Sight Range 21 Terrain Scan Density 10 Power Shielding 33 Weapon Shielding 33 Evasion (%) 55 Targeting Accuracy 5 Item Schematics ----------------- None Robot Schematics ------------------ None Fabricated ------------ Nothing Repaired ---------- Nothing Studied --------- None Alien Tech Used ----------------- None Achievements -------------- None Challenges ------------ None Game ------ Seed MetafieldLightpackCharger Manual? 0 Play Time 00:15:36 Cumulative 31.0 hours Start 2026.07.03 @ 23:24:54 End 2026.07.03 @ 23:41:02 Sessions 1 Manual Loads 0 Difficulty Rogue Special Mode None Game No. 26 Rogue 5 Adventurer 21 Explorer 0 Win Type - Total 0 Types 0/0/0/0/0/0/0/0/0/0 Lore% 10 Gallery% 22 Achievement% 17 Wizard Run 0 Options --------- Layout 0 ASCII 0 Keyboard 1 Movement Vi Keybinds 0 Fullscreen 1 Font 18/SmallcapsGlow Map View 76x50 Zoom Use 0% Tactical HUD 1 Map Filters NONE Filters NONE Steam 1 RUN: 6e3aa613-db46-4ced-b109-5ab1bf3e123a